Cogmind - Beta 14 @@@ ROGUE MODE // 2025.03.06 @ 07:41:15 Player: Willow Result: Self-destructed Performance ------------- Evolutions (5) 2500 Regions Visited (17) 3400 Robots Destroyed (197) 985 Value Destroyed (10002) 10002 Prototype IDs (31) 620 Alien Tech Used (0) 0 Bonus (5747) 5747 TOTAL SCORE: 23254 Bonus ------- High Alert Combat Kills 819 Follower Combat Kills 2145 Entered Garrisons 1000 Used RIF Installer 2000 Friendly Fire -217 Cogmind --------- Core Integrity 702/1000 Matter 268/300 Energy 100/100 System Corruption 5% Temperature Cool (0) Movement Rolling (90) Location -5/Garrison Parts ------- > --- POWER (1) -------- (None) > --- PROPULSION (3) --- Carbon-fiber Leg Armored Wheel > --- UTILITY (10) ----- Hacking Suite Hacking Suite System Shield Relay Coupler [Brawler] (26) Relay Coupler [Sentry] (1) Relay Coupler [Sentry] (26) > --- WEAPON (3) ------- (None) > --- INVENTORY (5) ---- Relay Coupler [NC] (33) Relay Coupler [Grunt] (25) Relay Coupler [Sentry] (19) Relay Coupler [Heavy] (15) Relay Coupler [Behemoth] (10) Peak State ------------ > --- POWER ------------ Improved Deuterium Engine > --- PROPULSION ------- Armored Huge Wheel > --- UTILITY ---------- Large Storage Unit Layered Light Armor Plating Force Field Hacking Suite Relay Coupler [Brawler] Relay Coupler [Sentry] Relay Coupler [Sentry] Relay Coupler [Specialist] Relay Coupler [Hunter] > --- WEAPON ----------- Heavy Linear Accelerator Remote Datajack > --- INVENTORY -------- Micro Nuclear Core Biometal Leg Gravity Neutralizer Experimental Sensor Array Improved Medium Armor Plating Hacking Suite System Shield Relay Coupler [NC] Relay Coupler [Grunt] Relay Coupler [Grunt] Relay Coupler [Sentry] Relay Coupler [Hunter] Relay Coupler [Heavy] Relay Coupler [Behemoth] [Rating: 72] Favorites ----------- Power Ion Engine Engine Ion Engine Power Core Micro Nuclear Core Reactor Cold Fusion Reactor Propulsion Armored Huge Wheel Treads Improved Treads Leg Myomer Leg Wheel Armored Huge Wheel Utility Large Storage Unit Device Disposable Heat Sink Storage Large Storage Unit Processor Advanced Targeting Computer Hackware Hacking Suite Protection Light Armor Plating Weapon Remote Datajack Energy Gun Improved Medium Laser Energy Cannon Advanced Beam Cannon Ballistic Gun Gauss Rifle Ballistic Cannon Mass Driver Launcher Grenade Launcher Special Weapon Remote Datajack Special Melee Weapon Datajack Build | -11 -10 -10 -9 -9 -9 -8 -8 -8 -8 -7 -7 -7 -7 -6 -6 -5 -5 ------- Run | Yrd Mat Min Mat Min Exi Min Mat Sto Gar Fac Gar Fac Gar Fac Gar Fac Gar Slots Evolved 10 | . . . 2 . . . 2 . . 2 . . . 2 . 2 . Power . | . . . . . . . . . . . . . . . . . . Propulsion 1 | . . . . . . . . . . . . . . . . 1 . Utility 8 | . . . 2 . . . 2 . . 2 . . . 1 . 1 . Weapon 1 | . . . . . . . . . . . . . . 1 . . . Parts Attached 196 | 7 11 9 21 1 3 3 31 6 13 3 24 3 13 12 25 11 . Power 19 | 1 2 1 3 . . . 3 1 . . 3 1 . 3 . 1 . Engine 14 | 1 2 1 3 . . . 3 . . . 2 . . 2 . . . Core 4 | . . . . . . . . . . . 1 1 . 1 . 1 . Reactor 1 | . . . . . . . . 1 . . . . . . . . . Propulsion 29 | 2 1 2 7 . . . 4 . 1 . 4 . . 1 3 4 . Treads 14 | 2 1 2 7 . . . 2 . . . . . . . . . . Leg 9 | . . . . . . . . . . . 3 . . . 3 3 . Wheel 6 | . . . . . . . 2 . 1 . 1 . . 1 . 1 . Hover . | . . . . . . . . . . . . . . . . . . Flight . | . . . . . . . . . . . . . . . . . . Utility 90 | 2 3 2 6 . . 2 13 4 5 2 15 2 12 7 15 . . Device 17 | 1 . 1 2 . . . 3 3 2 . 1 . . . 4 . . Storage 4 | 1 1 . . . . . 1 . . . . 1 . . . . . Processor 2 | . . . . . . . 2 . . . . . . . . . . Hackware 42 | . . . 1 . . . 1 . 1 2 13 . 9 6 9 . . Protection 25 | . 2 1 3 . . 2 6 1 2 . 1 1 3 1 2 . . Artifact . | . . . . . . . . . . . . . . . . . . Weapon 58 | 2 5 4 5 1 3 1 11 1 7 1 2 . 1 1 7 6 . Energy Gun 6 | . 3 2 . . . . 1 . . . . . . . . . . Energy Cannon 6 | . . . 3 . 1 . . . . . . . 1 . 1 . . Ballistic Gun 20 | 2 2 . . . . . 3 1 1 . . . . . 5 6 . Ballistic Cannon 14 | . . . 1 . . 1 6 . 4 . 1 . . . 1 . . Launcher 5 | . . 2 1 1 1 . . . . . . . . . . . . Special Weapon 3 | . . . . . . . . . . 1 1 . . 1 . . . Impact Weapon . | . . . . . . . . . . . . . . . . . . Slashing Weapon . | . . . . . . . . . . . . . . . . . . Piercing Weapon . | . . . . . . . . . . . . . . . . . . Special Melee Weapon 4 | . . . . . 1 . 1 . 2 . . . . . . . . Unidentified Prototypes 6 | . 1 . 2 . . . 1 1 . . . . . . 1 . . Parts Lost 37 | . . 4 5 . . 1 8 . 1 . 1 . 1 . 10 5 1 Power 5 | . . 1 1 . . . 1 . . . . . . . 1 . 1 Propulsion 7 | . . 2 . . . . 1 . . . . . . . 3 1 . Utility 15 | . . . 3 . . 1 3 . 1 . 1 . 1 . 4 1 . Weapon 10 | . . 1 1 . . . 3 . . . . . . . 2 3 . Highest Loss Streak 7 | . . 4 3 . . 1 4 . 1 . 1 . 1 . 7 5 1 To Critical Strikes 1 | . . . . . . . . . . . . . . . . 1 . Average Slot Usage (%) 89 | . 99 97 98 100 96 100 85 80 80 83 90 94 90 83 79 74 50 Engine 5 | . 14 11 10 11 11 11 8 3 . . 3 2 . . 4 . . Core 1 | . . . . . . . . . . . 1 4 7 4 . 4 3 Reactor 1 | . . . . . . . . 5 9 7 2 . . . . . . Treads 7 | . 27 28 22 22 22 22 . . . . . . . . . . . Leg 3 | . . . . . . . . . . . 6 15 15 5 2 9 5 Wheel 3 | . . . . . . . 8 9 9 7 3 . . 3 4 . 5 Device 4 | . 1 3 10 11 11 11 4 2 8 7 . . . . 3 . . Storage 8 | . 14 14 11 11 11 11 9 9 9 7 7 7 7 6 4 . . Processor 2 | . . . . . . . 9 9 9 7 . . . . . . . Hackware 21 | . . . 11 11 11 11 17 15 9 22 42 40 35 39 38 40 35 Protection 8 | . 12 10 10 11 11 11 9 9 8 7 4 6 7 4 4 . . Energy Gun 3 | . 14 27 5 . . . 2 . . . . . . . . . . Energy Cannon 1 | . . . 7 11 . 11 . . . . . . . 6 . . . Ballistic Gun 4 | . 13 . . . . . 7 17 6 . . . . . 3 17 . Ballistic Cannon 4 | . . . 8 . . 7 6 . 11 7 6 7 6 . 4 . . Special Weapon 2 | . . . . . . . . . . 6 7 7 7 9 4 . . Peak Build Rating 72 | 7 13 19 26 19 20 21 41 46 57 63 62 59 61 63 72 60 33 Average Rating 40 | 5 9 13 21 19 17 20 36 42 52 61 56 56 58 58 59 54 31 On Entrance 35 | . 7 13 19 20 19 20 21 39 46 57 62 59 56 61 57 42 33 Naked Turns . | . . . . . . . . . . . . . . . . . . Heaviest Build 71 | 14 34 36 40 36 36 37 51 61 71 71 65 53 57 54 71 32 14 Greatest Support 53 | 40 40 40 46 46 46 46 46 28 28 28 53 53 53 53 30 45 12 Greatest Overweight (x) 4 | 4 . . . . . . 1 2 2 2 2 . 1 1 2 2 1 Average Overweight (x) . | . . . . . . . . 1 1 2 . . . . 1 . . Largest Inventory Capacity 15 | 8 15 15 15 15 15 15 15 15 15 15 15 15 15 15 15 5 5 Average Capacity 14 | 7 12 15 15 15 15 15 15 15 15 15 15 15 15 15 12 5 5 Most Carried 15 | 1 15 15 15 15 15 15 15 15 15 15 15 15 15 15 15 5 5 Average Carried 13 | . 11 14 14 15 14 14 13 14 14 14 13 15 14 14 10 5 5 Final Capacity 15 | 8 15 15 15 15 15 15 15 15 15 15 15 15 15 15 5 5 5 Final Carried 15 | 1 15 15 15 15 15 15 15 15 15 15 15 15 15 15 5 5 5 Class Distribution -------------------- 31% | Mutant 19% | Bothacker-Mutant 18% | Hacker-Mutant 10% | Botlord-Mutant 6% | Commander-Mutant 5% | Botlord-Tank 3% | Hacker-Gunner Dominant Class ---------------- Mutant | -10/Materials Mutant | -10/Mines Mutant | -9/Materials Mutant | -9/Mines Commander-Mutant | -9/Exiles Mutant | -8/Mines Hacker-Mutant | -8/Materials Hacker-Mutant | -8/Storage Mutant | -8/Garrison Bothacker-Mutant | -7/Factory Bothacker-Mutant | -7/Garrison Bothacker-Mutant | -7/Factory Botlord-Mutant | -7/Garrison Botlord-Mutant | -6/Factory Botlord-Tank | -6/Garrison Hacker-Gunner | -5/Factory Hacker-Mutant | -5/Garrison Resources | -11 -10 -10 -9 -9 -9 -8 -8 -8 -8 -7 -7 -7 -7 -6 -6 -5 -5 ----------- Run | Yrd Mat Min Mat Min Exi Min Mat Sto Gar Fac Gar Fac Gar Fac Gar Fac Gar Matter Collected 6633 | 281 327 110 399 70 96 125 952 458 633 . 1266 . 667 210 768 271 . Remotely . | . . . . . . . . . . . . . . . . . . Salvage Created 6474 | 104 448 239 1021 40 . 59 1464 874 789 13 581 . 119 99 153 471 . Parts 384 | 11 44 13 52 15 . 10 74 51 47 1 24 . 2 6 14 20 . Haulers Intercepted 11 | . 1 . 4 . . . 3 3 . . . . . . . . . Recyclers Shooed 4 | . . . 3 . . . . . . . . . . 1 . . . Parts Field Recycled . | . . . . . . . . . . . . . . . . . . Retrieved Matter . | . . . . . . . . . . . . . . . . . . Parts Self-Destructed . | . . . . . . . . . . . . . . . . . . Prevented . | . . . . . . . . . . . . . . . . . . Kills | -11 -10 -10 -9 -9 -9 -8 -8 -8 -8 -7 -7 -7 -7 -6 -6 -5 -5 ------- Run | Yrd Mat Min Mat Min Exi Min Mat Sto Gar Fac Gar Fac Gar Fac Gar Fac Gar Combat Hostiles Destroyed 158 | . 13 10 21 8 . 7 24 13 23 . 19 . 5 2 8 5 . Guns 60 | . 13 5 2 . . . 10 13 10 . . . . . 2 5 . Cannons 76 | . . . 18 . . . 14 . 12 . 19 . 5 2 6 . . AOE 21 | . . 5 1 8 . 7 . . . . . . . . . . . Classes Destroyed 18 | 2 6 2 2 . . . 2 . 1 . 1 . . . 2 . . Worker 4 | . 1 . 1 . . . 1 1 . . . . . . . . . Builder 2 | . . . . . . . 1 1 . . . . . . . . . Tunneler 2 | 2 . . . . . . . . . . . . . . . . . Hauler 11 | . 1 . 4 . . . 3 3 . . . . . . . . . Recycler 4 | 1 . . 1 . . . 1 . . . . . . . . 1 . Mechanic 1 | . . 1 . . . . . . . . . . . . . . . Operator 3 | . 1 . . . . 1 1 . . . . . . . . . . Watcher 11 | . 3 . 1 . . . 5 1 . 1 . . . . . . . Swarmer 38 | . 9 3 4 8 . 5 . . 7 . 1 . . . 1 . . Cutter 2 | . . . . . . . . . . . . . . . 2 . . Grunt 73 | . 4 5 10 . . 2 12 5 9 . 13 . 5 1 2 5 . Brawler 5 | . . . 2 . . . 1 . 2 . . . . . . . . Duelist 6 | . . . 1 . . . 1 1 1 . 2 . . . . . . Sentry 21 | . . 2 4 . . . 8 6 1 . . . . . . . . Specialist 1 | . . . . . . . . . . . . . . . 1 . . Hunter 6 | . . . . . . . 2 1 1 . . . . . 2 . . Programmer 6 | . . . . . . . . . 2 . 3 . . 1 . . . Behemoth 1 | . . . . . . . . . . . 1 . . . . . . Best Kill Streak 7 | 2 3 6 6 4 . 4 6 4 6 1 7 . 2 1 2 2 . Combat Bots Only 7 | . 3 5 5 4 . 4 5 3 6 . 7 . 2 1 2 2 . Max Kills in Single Turn 3 | 1 2 2 3 3 . 3 1 1 2 1 1 . 1 1 1 1 . Gunslinging 1 | . 1 . . . . . . . 1 . . . . . . . . Exploded 3 | . . 2 1 3 . 3 . . . . . . . . . . . Melee . | . . . . . . . . . . . . . . . . . . Uniques/NPCs Destroyed . | . . . . . . . . . . . . . . . . . . Combat | -11 -10 -10 -9 -9 -9 -8 -8 -8 -8 -7 -7 -7 -7 -6 -6 -5 -5 -------- Run | Yrd Mat Min Mat Min Exi Min Mat Sto Gar Fac Gar Fac Gar Fac Gar Fac Gar Hostile Shots Fired 1054 | . 95 58 88 17 . 34 152 78 103 . 114 9 31 4 181 75 15 Missed 290 | . 20 14 17 11 . 10 48 27 22 . 34 8 10 2 45 18 4 Damage Taken 11510 | . 682 660 1022 122 . 464 1620 743 1054 . 1303 5 386 112 1968 1181 188 Core 1683 | . 133 105 92 26 . 62 277 64 77 . 140 . 15 17 377 232 66 Absorbed by Shields 247 | . . . . . . . . . . . . . . . 247 . . Ignored by Resistances 3 | . . . . . . . . . . . 3 . . . . . . Regen/Repaired (Parts) 385 | . 94 . 63 . . . 11 217 . . . . . . . . . Core Remaining (%) 52 | 100 . 4 . . . 55 . . 24 . . . 77 . 53 . . Volleys Fired 710 | 5 57 19 65 5 . 13 81 48 64 2 149 7 74 30 74 17 . Largest 3 | 2 2 2 2 2 . 2 2 2 2 1 1 1 1 1 2 3 . Hottest 120 | 40 112 112 112 98 . 107 96 56 114 57 57 5 57 120 120 105 . Shots Fired 1059 | 10 114 36 127 7 . 18 161 97 99 2 149 7 74 30 77 51 . Gun 485 | 10 114 31 22 . . . 76 97 65 . . . . . 19 51 . Cannon 449 | . . . 104 1 . 11 85 . 34 2 119 . 46 12 35 . . Launcher 19 | . . 5 1 6 . 7 . . . . . . . . . . . Special 106 | . . . . . . . . . . . 30 7 28 18 23 . . Kinetic 750 | 10 90 . 54 . . 5 127 97 99 2 119 . 46 . 50 51 . Thermal 150 | . 24 31 72 1 . 6 . . . . . . . 12 4 . . Explosive 19 | . . 5 1 6 . 7 . . . . . . . . . . . Electromagnetic 34 | . . . . . . . 34 . . . . . . . . . . Robot Hit Streak 22 | 2 9 15 16 3 . 2 18 18 22 1 13 4 20 14 9 14 . Robot Miss Streak 6 | 1 4 3 4 2 . 3 4 1 3 1 3 1 1 1 6 5 . Penetration Max 1 | . . . . . . . 1 1 1 . 1 . . . . 1 . Secondary Targets 16 | . 7 1 . . . . 1 1 5 . . . . . . 1 . Max Gunslinging Chain 1 | . 1 1 . . . . 1 1 1 . . . . . . 1 . Shots Hit Robots 693 | 5 66 25 79 3 6 6 123 73 57 1 96 5 42 20 50 36 . Core Hits 286 | 5 24 18 32 10 . 20 55 30 27 1 26 . 5 5 7 21 . Critical Kills 9 | . . . . . . . . 2 . . . . . . 1 6 . Critical Parts Destroyed 4 | . . . . . . . . . . . . . . . . 4 . Critical Strikes 41 | . 2 3 1 . . . 4 3 7 1 8 . . . 2 10 . Burn 6 | . 2 3 1 . . . . . . . . . . . . . . Destroy 14 | . . . . . . . . 3 . . . . . . 1 10 . Blast 21 | . . . . . . . 4 . 7 1 8 . . . 1 . . Melee Attacks 12 | . . . . . 6 . 4 . 2 . . . . . . . . Impact . | . . . . . . . . . . . . . . . . . . Slashing . | . . . . . . . . . . . . . . . . . . Piercing . | . . . . . . . . . . . . . . . . . . Sneak Attacks 11 | . . . . . 6 . 4 . 1 . . . . . . . . Combat Hostiles 6 | . . . . . 6 . . . . . . . . . . . . Follow-up Attacks . | . . . . . . . . . . . . . . . . . . Damage Inflicted 17130 | 55 872 1013 1901 484 . 692 3062 1670 1619 33 2782 . 628 359 1618 342 . Guns 5963 | 55 871 392 292 . . . 1359 1670 809 . . . . . 215 300 . Cannons 9189 | . . . 1448 . . 84 1642 . 810 33 2782 . 628 359 1403 . . Explosions 1911 | . . 621 150 484 . 602 54 . . . . . . . . . . Melee . | . . . . . . . . . . . . . . . . . . Ramming 67 | . 1 . 11 . . 6 7 . . . . . . . . 42 . Kinetic 12480 | 55 578 . 789 . . 42 2402 1670 1619 33 2782 . 628 . 1582 300 . Thermal 2127 | . 293 392 951 . . 42 54 . . . . . . 359 36 . . Explosive 1857 | . . 621 150 484 . 602 . . . . . . . . . . . Electromagnetic 599 | . . . . . . . 599 . . . . . . . . . . Impact . | . . . . . . . . . . . . . . . . . . Slashing . | . . . . . . . . . . . . . . . . . . Piercing . | . . . . . . . . . . . . . . . . . . Highest Corruption 5 | . . . 4 4 4 4 1 1 2 . 4 . 2 . 2 5 5 Average Corruption 2 | . . . 4 4 4 4 1 1 1 . 2 . 2 . 1 5 5 Corruption Purged 4 | . . . . . . . . . . . 4 . . . . . . Corruption Blocked . | . . . . . . . . . . . . . . . . . . Effects 76 | . . . 16 7 17 9 . 8 9 . 2 . 5 . . 1 2 Message Errors 18 | . . . 2 1 6 1 . 2 2 . 1 . 1 . . . 2 Matter Fused 13 | . . . 4 1 2 1 . 1 4 . . . . . . . . Heat Flow Errors 13 | . . . 3 2 2 1 . 2 1 . . . 1 . . 1 . Energy Discharges 8 | . . . 2 1 2 3 . . . . . . . . . . . Parts Rejected 2 | . . . . . . 1 . . . . . . 1 . . . . Data Loss (minor) 14 | . . . 3 1 4 2 . 2 1 . 1 . . . . . . Data Loss (major) 4 | . . . . . 1 . . . 1 . . . 2 . . . . Misfires 2 | . . . . 1 . . . 1 . . . . . . . . . Alerts 1 | . . . 1 . . . . . . . . . . . . . . Weapon Failures 1 | . . . 1 . . . . . . . . . . . . . . Overload Shots . | . . . . . . . . . . . . . . . . . . Overflow Damage 644 | . . 13 33 . . . 77 . 101 . 140 . 23 14 243 . . Projectiles 581 | . . . 27 . . . 33 . 101 . 140 . 23 14 243 . . Explosions 63 | . . 13 6 . . . 44 . . . . . . . . . . Melee . | . . . . . . . . . . . . . . . . . . Knockbacks 64 | . . . 14 . . . 6 . 3 . 25 . 7 . 9 . . Impact . | . . . . . . . . . . . . . . . . . . Kinetic 60 | . . . 12 . . . 6 . 3 . 23 . 7 . 9 . . Secondary 4 | . . . 2 . . . . . . . 2 . . . . . . Self-Inflicted Damage 211 | . . 44 39 73 . . 45 . . . . . . . . 10 . Shots 9 | . . 3 1 3 . . 2 . . . . . . . . . . Rammed 8 | . 1 . 4 . . 1 1 . . . . . . . . 1 . Targets Rammed 16 | . 1 . 4 . . 1 1 . . . . . . . . 9 . Kicked 8 | . . . . . . . . . . . . . . . . 8 . Crushed . | . . . . . . . . . . . . . . . . . . Highest Temperature 315 | . 249 105 199 157 170 197 315 251 255 8 252 . 143 210 110 197 . Average Temperature 60 | . 71 41 82 60 84 78 81 57 55 6 45 . 35 74 32 39 . Received Heat Transfer 3487 | . 177 342 354 . . 117 630 315 279 . 483 . 180 24 132 454 . Effects 1 | . . . . . . . 1 . . . . . . . . . . Energy Bleed 1 | . . . . . . . 1 . . . . . . . . . . Siege Activations . | . . . . . . . . . . . . . . . . . . Robots Corrupted 1 | . . . . . . . . . 1 . . . . . . . . Combat Hostiles 1 | . . . . . . . . . 1 . . . . . . . . Parts Fried 5 | . . . . . . . 3 . 2 . . . . . . . . Impact Corruptions 3 | . . . 1 . . . . . 2 . . . . . . . . Robots Melted . | . . . . . . . . . . . . . . . . . . Combat Hostiles . | . . . . . . . . . . . . . . . . . . Parts Melted 9 | . 4 . 2 . . 1 . . . . . . . 2 . . . Heat Transferred 4585 | . 777 1073 1813 . . 74 50 . . . . . . 761 37 . . Parts Sabotaged . | . . . . . . . . . . . . . . . . . . Parts Stolen . | . . . . . . . . . . . . . . . . . . Parts Stripped . | . . . . . . . . . . . . . . . . . . Power Chain Reactions 1 | . . . . . . . 1 . . . . . . . . . . Alert | -11 -10 -10 -9 -9 -9 -8 -8 -8 -8 -7 -7 -7 -7 -6 -6 -5 -5 ------- Run | Yrd Mat Min Mat Min Exi Min Mat Sto Gar Fac Gar Fac Gar Fac Gar Fac Gar Peak Influence 1320 | 15 395 304 425 348 . 366 605 410 1092 593 1320 693 815 524 310 358 219 Initial 693 | . 9 70 40 101 . . 142 26 154 573 415 693 379 427 77 158 219 Average 401 | 5 199 190 211 269 . 275 231 250 732 583 876 628 563 387 180 235 216 Maximum Alert Level 4 | . 1 1 2 1 . 1 2 2 3 2 4 2 3 2 1 1 1 Low Security (%) 27 | 100 44 34 53 1 . 22 59 21 4 . . . . 9 48 46 . Level 1 33 | . 55 65 40 98 . 77 19 75 14 . 3 . 9 20 51 53 100 Level 2 24 | . . . 5 . . . 20 3 23 100 32 100 71 69 . . . Level 3 11 | . . . . . . . . . 58 . 37 . 18 . . . . Level 4 3 | . . . . . . . . . . . 26 . . . . . . Level 5 . | . . . . . . . . . . . . . . . . . . High Security . | . . . . . . . . . . . . . . . . . . Max Security . | . . . . . . . . . . . . . . . . . . Squads Dispatched 22 | . 4 1 1 . . . 5 5 . . . . . 3 . 3 . Investigation 8 | . 2 . 1 . . . 4 1 . . . . . . . . . Extermination 1 | . . . . . . . . . . . . . . 1 . . . Reinforcement 6 | . 2 . . . . . 1 2 . . . . . 1 . . . Assault 2 | . . 1 . . . . . . . . . . . 1 . . . Garrison 5 | . . . . . . . . 2 . . . . . . . 3 . Intercept . | . . . . . . . . . . . . . . . . . . Searches Triggered . | . . . . . . . . . . . . . . . . . . Construction Impeded . | . . . . . . . . . . . . . . . . . . Haulers Reinforced . | . . . . . . . . . . . . . . . . . . Active Scanning Responses . | . . . . . . . . . . . . . . . . . . Cargo Convoy Interrupts . | . . . . . . . . . . . . . . . . . . Alert ID Control Effect 51 | . . . . . . . . . . . 9 . 18 9 15 . . Stealth | -11 -10 -10 -9 -9 -9 -8 -8 -8 -8 -7 -7 -7 -7 -6 -6 -5 -5 --------- Run | Yrd Mat Min Mat Min Exi Min Mat Sto Gar Fac Gar Fac Gar Fac Gar Fac Gar Distress Signals 10 | . 2 . 1 . . . 5 2 . . . . . . . . . Communications Jammed . | . . . . . . . . . . . . . . . . . . Distress Signals . | . . . . . . . . . . . . . . . . . . Times Spotted 348 | . 26 12 36 8 . 14 40 28 25 1 45 2 35 17 41 13 5 Peak Tracking Total 10 | . 5 6 6 4 . 8 7 6 6 1 5 1 7 5 10 4 4 Tactical Retreats 24 | . . 1 . . . . 2 3 3 . 2 . 4 . 6 3 . Traps | -11 -10 -10 -9 -9 -9 -8 -8 -8 -8 -7 -7 -7 -7 -6 -6 -5 -5 ------- Run | Yrd Mat Min Mat Min Exi Min Mat Sto Gar Fac Gar Fac Gar Fac Gar Fac Gar Traps Triggered 22 | . 1 . 1 . . . 4 . 5 . . . 4 1 5 . 1 Indirectly . | . . . . . . . . . . . . . . . . . . Trap Hack Attempts . | . . . . . . . . . . . . . . . . . . Triggered . | . . . . . . . . . . . . . . . . . . Disarmed . | . . . . . . . . . . . . . . . . . . Reprogrammed . | . . . . . . . . . . . . . . . . . . Reused . | . . . . . . . . . . . . . . . . . . Traps Extracted . | . . . . . . . . . . . . . . . . . . Installed . | . . . . . . . . . . . . . . . . . . Triggered . | . . . . . . . . . . . . . . . . . . Machines | -11 -10 -10 -9 -9 -9 -8 -8 -8 -8 -7 -7 -7 -7 -6 -6 -5 -5 ---------- Run | Yrd Mat Min Mat Min Exi Min Mat Sto Gar Fac Gar Fac Gar Fac Gar Fac Gar Machines Disabled 29 | . 1 . 2 1 . 1 2 3 5 . 6 . 4 . 4 . . Max in Single Turn 1 | . 1 . 1 1 . . 1 1 1 . 1 . 1 . 1 . . Garrison Access 1 | . . . . . . . . . . . . . . . . 1 . Garrison Relay 18 | . . . . . . . . . 5 . 6 . 4 . 3 . . Machines Repaired . | . . . . . . . . . . . . . . . . . . Machines Dismantled . | . . . . . . . . . . . . . . . . . . Machines Sabotaged . | . . . . . . . . . . . . . . . . . . Overloaded Fab Kills . | . . . . . . . . . . . . . . . . . . Hacking | -11 -10 -10 -9 -9 -9 -8 -8 -8 -8 -7 -7 -7 -7 -6 -6 -5 -5 --------- Run | Yrd Mat Min Mat Min Exi Min Mat Sto Gar Fac Gar Fac Gar Fac Gar Fac Gar Machines Accessed 65 | . 8 . 7 . 1 . 12 12 3 3 2 4 2 6 2 2 1 Terminals 45 | . 6 . 6 . . . 8 9 3 1 2 2 2 3 2 . 1 Fabricators 2 | . . . . . . . . . . . . 1 . 1 . . . Repair Stations 5 | . 1 . 1 . . . 1 1 . . . . . 1 . . . Recycling Units 3 | . 1 . . . . . 1 1 . . . . . . . . . Scanalyzers 3 | . . . . . . . 2 . . 1 . . . . . . . Garrison Access 6 | . . . . . . . . 1 . 1 . 1 . 1 . 2 . Total Hacks 162 | . 21 . 24 . 1 . 42 24 4 7 2 12 5 11 5 2 2 Successful 113 | . 13 . 16 . 1 . 32 21 3 6 2 7 1 7 1 2 1 Failed 49 | . 8 . 8 . . . 10 3 1 1 . 5 4 4 4 . 1 Catastrophic 5 | . . . . . . . 1 . . . . . 3 . 1 . . Database Lockouts . | . . . . . . . . . . . . . . . . . . Manual 98 | . 20 . 23 . 1 . 27 12 . 2 . 7 . 6 . . . Terminals 127 | . 16 . 22 . . . 32 20 4 3 2 9 5 7 5 . 2 Fabricators 3 | . . . . . . . . . . . . 2 . 1 . . . Repair Stations 10 | . 2 . 2 . . . 2 2 . . . . . 2 . . . Recycling Units 5 | . 3 . . . . . 1 1 . . . . . . . . . Scanalyzers 10 | . . . . . . . 7 . . 3 . . . . . . . Garrison Access 6 | . . . . . . . . 1 . 1 . 1 . 1 . 2 . Terminal Hacks 43 | . 2 . 5 . 1 . 12 10 3 1 2 3 1 1 1 . 1 Part Schematic 1 | . . . . . . . . 1 . . . . . . . . . Robot Schematic 1 | . . . . . . . . . . 1 . . . . . . . Robot Analysis 8 | . 1 . 4 . . . 2 1 . . . . . . . . . Prototype ID Bank 1 | . . . . . . . . 1 . . . . . . . . . Open Door 5 | . . . . . . . . 4 . . 1 . . . . . . Branch Access Points 3 | . . . . . . . 1 1 . . . . . 1 . . . Emergency Access Points 4 | . . . . . . . . . 1 . 1 . 1 . 1 . . Terminal Index 3 | . 1 . 1 . . . 1 . . . . . . . . . . Scanalyzer Index 1 | . . . . . . . 1 . . . . . . . . . . Garrison Index 1 | . . . . . . . 1 . . . . . . . . . . Alert Level 3 | . . . . . . . 2 . . . . 1 . . . . . Unreport Threat 4 | . . . . . . . 3 . . . . 1 . . . . . Locate Traps 1 | . . . . . . . . . . . . 1 . . . . . Dispatch Records 1 | . . . . . . . . 1 . . . . . . . . . Recall Investigation 1 | . . . . . . . 1 . . . . . . . . . . Hauler Manifests 1 | . . . . . . . . 1 . . . . . . . . . Garrison Registry 1 | . . . . . . . . . 1 . . . . . . . . Patrol Navigation 1 | . . . . . . . . . 1 . . . . . . . . Security Stations 1 | . . . . . . . . . . . . . . . . . 1 Derelict Proto ID Bank 1 | . . . . . 1 . . . . . . . . . . . . Fabricator Hacks 1 | . . . . . . . . . . . . . . 1 . . . Network Status 1 | . . . . . . . . . . . . . . 1 . . . Repair Station Hacks 9 | . 2 . 2 . . . 2 2 . . . . . 1 . . . Scan Component 5 | . 1 . 1 . . . 1 1 . . . . . 1 . . . Repair 4 | . 1 . 1 . . . 1 1 . . . . . . . . . Recycling Unit Hacks . | . . . . . . . . . . . . . . . . . . Scanalyzer 9 | . . . . . . . 7 . . 2 . . . . . . . Insert Component 5 | . . . . . . . 3 . . 2 . . . . . . . Analyze 4 | . . . . . . . 4 . . . . . . . . . . Garrison Access Hacks 6 | . . . . . . . . 1 . 1 . 1 . 1 . 2 . Unlock Access 5 | . . . . . . . . 1 . 1 . 1 . 1 . 1 . Seal Access 1 | . . . . . . . . . . . . . . . . 1 . Unauthorized Hacks 45 | . 9 . 9 . . . 11 8 . 2 . 3 . 3 . . . Terminals 42 | . 8 . 9 . . . 10 7 . 2 . 3 . 3 . . . Assimilate 1 | . . . 1 . . . . . . . . . . . . . . Botnet 15 | . 2 . 2 . . . 4 2 . 1 . 2 . 2 . . . Operators 4 | . 1 . 1 . . . 1 1 . . . . . . . . . Skim 22 | . 5 . 5 . . . 5 4 . 1 . 1 . 1 . . . Fabricators . | . . . . . . . . . . . . . . . . . . Repair Stations . | . . . . . . . . . . . . . . . . . . Recycling Units 3 | . 1 . . . . . 1 1 . . . . . . . . . Tunnel 3 | . 1 . . . . . 1 1 . . . . . . . . . Scanalyzers . | . . . . . . . . . . . . . . . . . . Garrison Access . | . . . . . . . . . . . . . . . . . . Data Cores Recovered 1 | . . . . . . . . . . . . . . 1 . . . Used . | . . . . . . . . . . . . . . . . . . Hacking Detections 50 | . 8 . 7 . . . 10 7 2 2 . 3 2 5 2 1 1 Full Trace Events 3 | . . . . . . . 1 . . . . . 1 . 1 . . Feedback Events . | . . . . . . . . . . . . . . . . . . Feedback Blocked . | . . . . . . . . . . . . . . . . . . Robot Schematics Acquired 1 | . . . . . . . . . . 1 . . . . . . . Robots Built . | . . . . . . . . . . . . . . . . . . Authchips . | . . . . . . . . . . . . . . . . . . Time . | . . . . . . . . . . . . . . . . . . Total Robot Build Rating . | . . . . . . . . . . . . . . . . . . Part Schematics Acquired 4 | . . . . . . . 3 1 . . . . . . . . . Parts Built . | . . . . . . . . . . . . . . . . . . Authchips . | . . . . . . . . . . . . . . . . . . Time . | . . . . . . . . . . . . . . . . . . Total Part Build Rating . | . . . . . . . . . . . . . . . . . . Parts Repaired 4 | . 1 . 1 . . . 1 1 . . . . . . . . . Time 251 | . 26 . 51 . . . 136 38 . . . . . . . . . Parts Recycled . | . . . . . . . . . . . . . . . . . . Recycled Matter . | . . . . . . . . . . . . . . . . . . Retrieved Matter . | . . . . . . . . . . . . . . . . . . Retrieved Components . | . . . . . . . . . . . . . . . . . . Parts Scanalyzed 3 | . . . . . . . 3 . . . . . . . . . . Part Schematics Acquired 3 | . . . . . . . 3 . . . . . . . . . . Parts Damaged 1 | . . . . . . . 1 . . . . . . . . . . Bothacking | -11 -10 -10 -9 -9 -9 -8 -8 -8 -8 -7 -7 -7 -7 -6 -6 -5 -5 ------------ Run | Yrd Mat Min Mat Min Exi Min Mat Sto Gar Fac Gar Fac Gar Fac Gar Fac Gar Used RIF Installer 4 | . . . . . . . . . 2 . 1 . 1 . . . . Robot Detection 1 | . . . . . . . . . . . . . 1 . . . . Alert ID Control 1 | . . . . . . . . . 1 . . . . . . . . Program Shield 1 | . . . . . . . . . . . 1 . . . . . . Robots Hacked 61 | . . . . . . . 2 . 1 . 13 2 19 11 13 . . Non-combat 8 | . . . . . . . 2 . . . . 1 . 5 . . . Combat 53 | . . . . . . . . . 1 . 13 1 19 6 13 . . Robot Hacks Applied 71 | . . . . . . . 3 . 1 . 17 3 20 13 14 . . parse_system 9 | . . . . . . . 1 . . . 2 1 3 1 1 . . no_distress 1 | . . . . . . . 1 . . . . . . . . . . find_recycling 1 | . . . . . . . . . . . . . . 1 . . . find_station 2 | . . . . . . . 1 . . . . . . 1 . . . purge_threat 1 | . . . . . . . . . . . . . . 1 . . . map_route 3 | . . . . . . . . . . . . 1 . 2 . . . amplify_resonance 2 | . . . . . . . . . . . 1 . 1 . . . . reboot_system 2 | . . . . . . . . . . . 1 . . 1 . . . go_dormant 1 | . . . . . . . . . . . 1 . . . . . . overwrite_iff 22 | . . . . . . . . . . . 5 . 8 1 8 . . streamctrl_high 1 | . . . . . . . . . . . . . 1 . . . . formatsys_low 1 | . . . . . . . . . . . . . . 1 . . . formatsys_high 25 | . . . . . . . . . 1 . 7 1 7 4 5 . . Relay Couplers Released 71 | . . . . . . . . . 21 . 24 . 14 . 12 . . Machine Destruction 71 | . . . . . . . . . 21 . 24 . 14 . 12 . . Attached 36 | . . . . . . . . . 1 2 13 . 9 4 7 . . Fabnet Peak Effective % . | . . . . . . . . . . . . . . . . . . Robots Rewired 4 | . . . . . 4 . . . . . . . . . . . . Allies Hacked . | . . . . . . . . . . . . . . . . . . Hacks Repelled . | . . . . . . . . . . . . . . . . . . Allies | -11 -10 -10 -9 -9 -9 -8 -8 -8 -8 -7 -7 -7 -7 -6 -6 -5 -5 -------- Run | Yrd Mat Min Mat Min Exi Min Mat Sto Gar Fac Gar Fac Gar Fac Gar Fac Gar Total Allies 69 | . . 1 1 3 4 . . 10 1 . 13 1 16 6 13 . . Largest Group 10 | . . 1 1 4 8 8 3 10 1 1 4 1 5 7 5 . . Highest-Rated Group 174 | . . 31 10 50 108 108 40 173 15 15 135 32 114 174 152 . . Highest-Rated Ally 85 | . . 31 10 16 21 21 16 29 15 15 85 32 32 47 47 . . Total Orders 3 | . . . . . . . . 3 . . . . . . . . . EXPLORE 3 | . . . . . . . . 3 . . . . . . . . . Ally Attacks 389 | . . 3 . . . 34 20 74 . 1 64 4 61 56 72 . . Total Damage 7809 | . . 40 . . . 436 193 793 . 14 1629 31 1504 1344 1825 . . Kills 72 | . . . . . . 6 1 7 . . 14 . 18 10 16 . . Allies Corrupted 2 | . . . . . . . . . . . . . . 2 . . . Allies Melted 2 | . . . . . . . . . . . . . 1 . 1 . . Intel | -11 -10 -10 -9 -9 -9 -8 -8 -8 -8 -7 -7 -7 -7 -6 -6 -5 -5 ------- Run | Yrd Mat Min Mat Min Exi Min Mat Sto Gar Fac Gar Fac Gar Fac Gar Fac Gar Robot Analysis Total 8 | . 1 . 4 . . . 2 1 . . . . . . . . . Derelict Logs Recovered 3 | . . 1 . 2 . . . . . . . . . . . . . Drone Launches 23 | . . . . . . . . 23 . . . . . . . . . Drone Recoveries 7 | . . . . . . . . 7 . . . . . . . . . Exploration | -11 -10 -10 -9 -9 -9 -8 -8 -8 -8 -7 -7 -7 -7 -6 -6 -5 -5 ------------- Run | Yrd Mat Min Mat Min Exi Min Mat Sto Gar Fac Gar Fac Gar Fac Gar Fac Gar Turns Passed 11994 | 91 1099 441 1206 170 537 340 1511 834 993 217 1417 376 982 572 781 350 77 Spaces Moved 6669 | 43 517 228 515 99 323 188 857 440 545 155 854 306 624 332 425 142 76 Core 18 | 9 . . . . . . . . . . . . . . 9 . . Treads 1914 | 34 517 228 515 99 323 188 10 . . . . . . . . . . Legs 1773 | . . . . . . . . . . . 452 306 624 136 124 131 . Wheels 2964 | . . . . . . . 847 440 545 155 402 . . 196 292 11 76 Hover . | . . . . . . . . . . . . . . . . . . Flight . | . . . . . . . . . . . . . . . . . . Fastest Speed 50 | 50 160 160 160 160 160 160 100 115 115 130 115 115 115 115 50 120 90 Average Speed 133 | 154 160 160 160 160 160 160 115 116 124 130 123 115 120 142 125 170 100 Slowest Speed 260 | 250 160 160 160 160 160 160 160 130 130 130 190 115 185 185 190 260 105 Overloaded Moves . | . . . . . . . . . . . . . . . . . . Propulsion Burnouts . | . . . . . . . . . . . . . . . . . . Robots Hopped . | . . . . . . . . . . . . . . . . . . Cave-ins Triggered . | . . . . . . . . . . . . . . . . . . Exploration Rate (%) 48 | 4 76 55 53 33 67 60 81 96 72 7 93 11 81 13 49 3 16 Regions Visited 17 Branch Regions 5 Pre-discovered Areas 6 | . 1 1 1 . . . 2 1 . . . . . . . . . Known Exits Taken 9 | . 1 . 1 . . 1 1 1 . 1 . 1 . 1 . 1 . Unknown Exits Taken 4 | 1 . 1 . 1 1 . . . . . . . . . . . . Scrap Searched 3 | . . 1 . 1 . 1 . . . . . . . . . . . Spaces Dug 11 | . . . . 9 . . . . . . . . . 1 1 . . Terrain Destroyed 172 | . . 40 6 37 . 32 20 . 5 1 14 . 5 2 10 . . Melee . | . . . . . . . . . . . . . . . . . . Projectile 54 | . . . 1 . . . 16 . 5 1 14 . 5 2 10 . . AOE 118 | . . 40 5 37 . 32 4 . . . . . . . . . . Terrain Rammed . | . . . . . . . . . . . . . . . . . . Walls Destroyed . | . . . . . . . . . . . . . . . . . . Machines Disabled . | . . . . . . . . . . . . . . . . . . Actions | -11 -10 -10 -9 -9 -9 -8 -8 -8 -8 -7 -7 -7 -7 -6 -6 -5 -5 --------- Run | Yrd Mat Min Mat Min Exi Min Mat Sto Gar Fac Gar Fac Gar Fac Gar Fac Gar Total 8738 | 55 682 266 772 104 341 210 1218 667 762 168 1083 329 792 409 594 210 76 Wait 816 | . 65 4 129 . 3 1 207 160 79 6 31 7 56 23 21 24 . Move 6651 | 42 516 227 514 98 322 187 856 439 543 155 852 306 622 331 423 142 76 Hop . | . . . . . . . . . . . . . . . . . . Pick Up 111 | 1 20 5 17 . 3 3 15 2 9 2 12 1 6 6 9 . . Fast Attach 77 | 7 4 1 6 . 1 1 17 3 6 . 12 2 3 3 7 4 . Attach 58 | . 1 3 5 . 1 2 11 1 3 2 5 . 6 5 13 . . Detach 1 | . . . . . . . . . . . . . 1 . . . . Swap 61 | . 6 5 10 1 1 . 3 2 4 1 7 1 4 4 5 7 . Drop 130 | . 12 2 22 . 4 2 23 5 12 . 15 5 4 6 10 8 . Fire 710 | 5 57 19 65 5 . 13 81 48 64 2 149 7 74 30 74 17 . Melee 12 | . . . . . 6 . 4 . 2 . . . . . . . . Ram 2 | . . . . . . . 1 . . . . . . . . 1 . Kick 7 | . . . . . . . . . . . . . . . . 7 . Crush 6 | . 1 . 4 . . 1 . . . . . . . . . . . Escape Stasis 87 | . . . . . . . . . 40 . . . 15 . 32 . . Rewire 2 | . . . . . . . . . . . . . 1 1 . . . Trap . | . . . . . . . . . . . . . . . . . . Miscellaneous 7 | . . . . . . . . 7 . . . . . . . . . Route ------- -11/Scrapyard -10/Materials (discovered 6 exits: *Mat x3 / *Min x2 / Sub) -10/Mines (discovered 2 exits: *Mat x2) -9/Materials (discovered 4 exits: *Mat x3 / *Min) -9/Mines (discovered 3 exits: *Mat x2 / *Exi) -9/Exiles (discovered 2 exits: [*Min x2]) -8/Mines -8/Materials (discovered 3 exits: *Fac / *Sto x2) -8/Storage (discovered 3 exits: *Fac / Rec / Gar) -8/Garrison (discovered 3 exits: *Fac x3) -7/Factory -7/Garrison (discovered 3 exits: *Fac x3) -7/Factory -7/Garrison (discovered 3 exits: *Fac x3) -6/Factory (discovered 3 exits: Low x2 / Gar) -6/Garrison (discovered 2 exits: *Fac x2) -5/Factory (discovered 2 exits: Ext / Gar) -5/Garrison History --------- Turn | Location | Event 18 | -11/Scrapyard | Discovered new exit (range 15) 92 | -11/Scrapyard | Entered Materials 325 | -10/Materials | Build established: Mutant 348 | -10/Materials | Discovered new exit (range 5) 631 | -10/Materials | Discovered new exit (range 11) 697 | -10/Materials | Discovered new exit (range 14) 849 | -10/Materials | Repaired Lgt. Treads 997 | -10/Materials | Discovered new exit (range 12) 1142 | -10/Materials | Identified exit to Subcaves 1142 | -10/Materials | Identified exit to Mines 1176 | -10/Materials | Core integrity fell below 50% 1191 | -10/Materials | Entered Mines 1225 | -10/Mines | Found a damaged Exp. Sensor Array with a note attached 1229 | -10/Mines | Found Prototype Device 1258 | -10/Mines | Discovered new exit (range 15) 1472 | -10/Mines | Met a Derelict testing a Signal Generator 1492 | -10/Mines | Discovered new exit (range 10) 1539 | -10/Mines | Core integrity fell below 20% 1570 | -10/Mines | Lost 4 parts (1p2n1w) 1632 | -10/Mines | Entered Materials 1632 | -9/Materials | Evolved 2 slots: Utility x2 2148 | -9/Materials | Lost 3 parts (2u1w) 2214 | -9/Materials | Discovered new exit (range 15) 2492 | -9/Materials | Discovered new exit (range 16) 2590 | -9/Materials | Loaded intel: 2 recycling unit locations 2621 | -9/Materials | Loaded intel: 7 trap records 2640 | -9/Materials | Identified exit to Materials 2648 | -9/Materials | Repaired Adv. Beam Cannon 2651 | -9/Materials | Learned Storage non-interactive machine intel 2652 | -9/Materials | Identified exit to Mines 2653 | -9/Materials | Learned location of Zion (-6) 2654 | -9/Materials | Loaded intel: 18 interactive machine locations 2838 | -9/Materials | Entered Mines 2838 | -9/Mines | Accompanied by 1 ally 2839 | -9/Mines | Met a Derelict bent on vengeance 2898 | -9/Mines | Learned Materials stockpile data 2936 | -9/Mines | Discovered exit to Materials (range 11) 2979 | -9/Mines | Assisted by bots powering up and referring to "LRC-V3" 3001 | -9/Mines | Deemed a non-threat by the Exiles lab entrance 3001 | -9/Mines | Discovered new exit (range 5) 3008 | -9/Mines | Entered Exiles 3008 | -9/Exiles | Found Exiles lab destroyed 3008 | -9/Exiles | Accompanied by 4 allies 3030 | -9/Exiles | Discovered new exit (range 15) 3276 | -9/Exiles | Build established: Commander-Mutant 3301 | -9/Exiles | Opened EX-Vault 3308 | -9/Exiles | Found Gui. Plasma Cannon 3521 | -9/Exiles | Discovered new exit (range 14) 3545 | -9/Exiles | Entered Mines 3545 | -8/Mines | Accompanied by 8 allies 3655 | -8/Mines | Lost 5 allies 3870 | -8/Mines | Discovered exit to Materials (range 10) 3885 | -8/Mines | Entered Materials 3885 | -8/Materials | Accompanied by 3 allies 3885 | -8/Materials | Evolved 2 slots: Utility x2 4121 | -8/Materials | Lost 3 allies 4173 | -8/Materials | Build established: Hacker-Mutant 4237 | -8/Materials | Lost 4 parts (1p1u2w) 4428 | -8/Materials | Discovered new exit (range 8) 4484 | -8/Materials | Discovered new exit (range 16) 4500 | -8/Materials | Identified Exp. Sensor Array 4859 | -8/Materials | Identified exit to Storage 4877 | -8/Materials | Learned Storage terminal intel 4908 | -8/Materials | Core integrity fell below 50% 4954 | -8/Materials | Learned Storage emergency access door positions 5022 | -8/Materials | Learned Storage security intel 5082 | -8/Materials | Learned Factory terminal intel 5134 | -8/Materials | Learned Storage security intel 5174 | -8/Materials | Learned 4 Lower Caves zone layouts 5224 | -8/Materials | Repaired Broken Exp. Sensor Array 5396 | -8/Materials | Entered Storage 5399 | -8/Storage | Loaded intel: 28 non-interactive machine locations 5400 | -8/Storage | Loaded intel: 15 terminal locations 5827 | -8/Storage | Repaired Hvy. Armor Plating 5916 | -8/Storage | Identified exit to Recycling 5920 | -8/Storage | Assisted by bots powering up and referring to "LRC-V3" 6043 | -8/Storage | Lost 5 allies 6059 | -8/Storage | Discovered new exit (range 13) 6085 | -8/Storage | Garrison activated, responded to threat 6149 | -8/Storage | Lost 7 allies 6184 | -8/Storage | Identified exit to Garrison 6230 | -8/Storage | Entered Garrison 6249 | -8/Garrison | Lost 4 allies 6252 | -8/Garrison | Triggered checkpoint 6270 | -8/Garrison | Garrison Relay disabled 6356 | -8/Garrison | Garrison Relay disabled 6358 | -8/Garrison | Garrison Relay disabled 6396 | -8/Garrison | Triggered checkpoint 6402 | -8/Garrison | Build established: Mutant 6428 | -8/Garrison | Triggered checkpoint 6631 | -8/Garrison | Discovered new exit (range 12) 6643 | -8/Garrison | Garrison Relay disabled 6644 | -8/Garrison | Triggered checkpoint 6788 | -8/Garrison | Triggered checkpoint 6841 | -8/Garrison | Discovered new exit (range 10) 6869 | -8/Garrison | Installed Relay Interface Framework 6897 | -8/Garrison | Discovered new exit (range 17) 6897 | -8/Garrison | Discovered new exit (range 66) 6897 | -8/Garrison | Discovered new exit (range 30) 6992 | -8/Garrison | Triggered checkpoint 7006 | -8/Garrison | Garrison Relay disabled 7173 | -8/Garrison | Build established: Bothacker-Mutant 7196 | -8/Garrison | Expanded RIF knowledge: Alert ID Control 7223 | -8/Garrison | Entered Factory 7223 | -7/Factory | Accompanied by 1 ally 7223 | -7/Factory | Evolved 2 slots: Utility x2 7224 | -7/Factory | Loaded intel: 26 terminal locations 7435 | -7/Factory | Identified exit to Garrison 7440 | -7/Factory | Entered Garrison 7440 | -7/Garrison | Accompanied by 1 ally 7468 | -7/Garrison | Triggered checkpoint 7522 | -7/Garrison | Garrison Relay disabled 7666 | -7/Garrison | Triggered checkpoint 7747 | -7/Garrison | Garrison Relay disabled 7817 | -7/Garrison | Triggered checkpoint 7826 | -7/Garrison | Triggered checkpoint 7906 | -7/Garrison | Discovered new exit (range 3) 8040 | -7/Garrison | Triggered checkpoint 8046 | -7/Garrison | Destroyed 7 combat bots 8064 | -7/Garrison | Garrison Relay disabled 8070 | -7/Garrison | Triggered checkpoint 8124 | -7/Garrison | Rescued a captive Derelict 8318 | -7/Garrison | Garrison Relay disabled 8340 | -7/Garrison | Triggered checkpoint 8374 | -7/Garrison | Expanded RIF knowledge: Program Shield 8386 | -7/Garrison | Discovered new exit (range 15) 8446 | -7/Garrison | Triggered checkpoint 8489 | -7/Garrison | Spotted B-75 Beast 8489 | -7/Garrison | Spotted B-75 Beast 8530 | -7/Garrison | Lost 3 allies 8562 | -7/Garrison | Assimilated Beast 4a with formatsys_high 8589 | -7/Garrison | Destroyed B-75 Beast 8728 | -7/Garrison | Discovered new exit (range 3) 8753 | -7/Garrison | Garrison Relay disabled 8776 | -7/Garrison | Triggered checkpoint 8807 | -7/Garrison | Garrison Relay disabled 8857 | -7/Garrison | Entered Factory 8857 | -7/Factory | Accompanied by 1 ally 9227 | -7/Factory | Identified exit to Garrison 9233 | -7/Factory | Entered Garrison 9233 | -7/Garrison | Accompanied by 1 ally 9252 | -7/Garrison | Expanded RIF knowledge: Robot Detection 9281 | -7/Garrison | Triggered checkpoint 9328 | -7/Garrison | Garrison Relay disabled 9509 | -7/Garrison | Triggered checkpoint 9518 | -7/Garrison | Triggered checkpoint 9541 | -7/Garrison | Triggered checkpoint 9553 | -7/Garrison | Build established: Botlord-Mutant 9565 | -7/Garrison | Discovered new exit (range 10) 9596 | -7/Garrison | Lost 5 allies 9633 | -7/Garrison | Triggered checkpoint 9634 | -7/Garrison | Garrison Relay disabled 9790 | -7/Garrison | Triggered checkpoint 9826 | -7/Garrison | Discovered new exit (range 3) 9928 | -7/Garrison | Garrison Relay disabled 10020 | -7/Garrison | Discovered new exit (range 10) 10047 | -7/Garrison | Triggered checkpoint 10106 | -7/Garrison | Garrison Relay disabled 10215 | -7/Garrison | Entered Factory 10215 | -6/Factory | Accompanied by 4 allies 10215 | -6/Factory | Evolved 2 slots: Utility x1, Weapon x1 10527 | -6/Factory | Identified exit to Lower Caves 10565 | -6/Factory | First assault squad dispatched 10732 | -6/Factory | Lost 5 allies 10771 | -6/Factory | Identified exit to Garrison 10787 | -6/Factory | Entered Garrison 10787 | -6/Garrison | Accompanied by 4 allies 10813 | -6/Garrison | Triggered checkpoint 10832 | -6/Garrison | Garrison Relay disabled 10889 | -6/Garrison | Triggered checkpoint 10895 | -6/Garrison | Triggered checkpoint 10903 | -6/Garrison | Triggered checkpoint 10903 | -6/Garrison | Triggered checkpoint 10975 | -6/Garrison | Lost 11 allies 11035 | -6/Garrison | Discovered new exit (range 10) 11049 | -6/Garrison | Triggered checkpoint 11074 | -6/Garrison | Garrison Relay disabled 11107 | -6/Garrison | Build established: Botlord-Tank 11162 | -6/Garrison | Heavy support dispatched to Factory 11249 | -6/Garrison | Triggered checkpoint 11258 | -6/Garrison | Garrison Relay disabled 11272 | -6/Garrison | Heavy support dispatched to Factory 11386 | -6/Garrison | Lost 7 parts (1p1n3u2w) 11454 | -6/Garrison | Heavy support dispatched to Factory 11496 | -6/Garrison | Discovered new exit (range 13) 11568 | -6/Garrison | Entered Factory 11568 | -5/Factory | Evolved 2 slots: Propulsion x1, Utility x1 11569 | -5/Factory | Identified exit to Extension 11734 | -5/Factory | Garrison activated, responded to threat 11846 | -5/Factory | Build established: Hacker-Gunner 11887 | -5/Factory | Identified exit to Garrison 11918 | -5/Factory | Entered Garrison 11946 | -5/Garrison | Lost 5 parts (1n1u3w) 11978 | -5/Garrison | Triggered checkpoint 11995 | -5/Garrison | Learned Extension security intel 11995 | -5/Garrison | Self-destructed Last Messages --------------- 11915_ Hyp. Coil Gun destroyed. 11915_ Kicked Y-64 Sentinel. 11918_ R-10 Processor collects Med. Storage Unit. 11918_ Kicked Y-64 Sentinel out of the way. LOCATION=GARRISON GOAL=ESCAPE 11957_ S103T2|E/MHKEGQ|KGPQ9EW#IOHOAH1 11971_ Triggered Alarm Trap. 11971_ An alarm sounds. 11972_ Y%UWQS|2|C FMVK53NYRIFP0SK95WX>Download(Security) Retrieving Extension security records... Downloaded coordinate data. Data stored: Extension security intel. Map ----- +----------------------------------------------------+ | | | | | | | | | | | | | | | ?????????????????????????????????????????????????? | | ?????????????????????????????????????????????????? | | ?????????????????????????????????????????????????? | | ?????????????????????????????????????????????????? | | ?????????????????????????????????????????????????? | | ?????????????????????????????????????????????????? | | ?????????????????????????????????????????????????? | | ?????????????????????????????????????????????????? | | ?????????????????????????????????????????????????? | | ?????????????????????????????????????????????????? | | ?????????????????????????????????????????????????? | | ?????????????????????????????????????????????????? | | ?????????????????????????????????????????????????? | | ?????????????????????????????????????????????????? | | ?????????????????????????????????????????????????? | | ????????????????????????????Y?##?????????????????? | | ??????????????????????########"#?????????????????? | | ??????????????????????#"T"## "#?????????????????? | | ??????????????????????#" @ s "#?????????????????? | | ??????????????????????######s "#?????????????????? | | ???????????????????????????# #"#?????????????????? | | ???????????????????????????# #?#?????????????????? | | ???????????????????????????# #???????????????????? | | ???????????????????????????# #???????????????????? | | ???????????????????????????# #???????????????????? | | ?????????????????????????### #???????????????????? | | ?????????????????????##### ######## #??????????? | | ?????????????????????# + #??????????? | | ?????????????????????# ### Y######+###??????????? | | ?????????????????????????### #???????????????????? | | ?????????#####?????????????# #???????????????????? | | ?????????# #???????####### ###### #????????????? | | ?????????# ######### + #????????????? | | ?????????# ###### #### #????????????? | | ?????????# #?????##?????????????????? | | ?????????############# #????????????????????????? | | ????????##???????????# #????????????????????????? | | ??????"""""??????????# #????????????????????????? | | ?????"""!!!!!????????# #????????????????????????? | | ????#"" ???????# #????????????????????????? | | ????#"! ####### #????????????????????????? | | ????#"! + #????????????????????????? | | ????#"! + #????????????????????????? | +----------------------------------------------------+ Best States ------------- Heat Dissipation 50 Coolant Potential 50 Energy Generation 19 Energy Capacity 315 Matter Stores 300 Matter Capacity 300 Sight Range 16 Terrain Scan Density 135 Armor Coverage 750 Resistance: TH 15 Evasion (%) 55 Targeting Accuracy 8 Recoil Reduction 6 Offensive Hacking 20 Defensive Hacking 10 Relay Coupler Types 6 Relay Coupler Value 176 Item Schematics ----------------- Imp. Light Armor Plating | -8/Materials | Scanalyzed Exp. Sensor Array | -8/Materials | Scanalyzed Arm. Huge Wheel | -8/Materials | Scanalyzed Lightning Gun | -8/Storage | Hacked Robot Schematics ------------------ B-36 Bruiser | -7/Factory | Hacked Fabricated ------------ Nothing Alien Tech Used ----------------- None Achievements -------------- None Challenges ------------ None Game ------ Seed SubatomicBoreMachine Manual? 0 Play Time 02:25:53 Cumulative 211.6 hours Start 2025.03.06 @ 04:02:35 End 2025.03.06 @ 07:41:15 Sessions 1 Manual Loads 0 Difficulty Rogue Special Mode None Game No. 104 Rogue 65 Adventurer 36 Explorer 3 Win Type - Total 6 Types 2/1/0/1/0/1/0/1/0 Lore% 67 Gallery% 66 Achievement% 64 Wizard Run 0 Options --------- Layout 1 ASCII 0 Keyboard 0 Movement Arrows Keybinds 0 Fullscreen 1 Font 24/Smallcaps Map View 50x35 Zoom Use 0% Tactical HUD 1 Map Filters NONE Filters NONE Steam 1 RUN: 1fa105b2-f221-483b-85ea-daf7057a85c0